fUSD/lending_fUSD_20251101
["ID","MTS","AMOUNT","RATE_DAILY","PERIOD"]
[392828479,1762011031786,-195.0,0.00014969,2]
[392828480,1762011031795,-150.0,0.0001497,2]
[392828481,1762011031804,-300.0,0.0001497,2]
[392828482,1762011031814,-1200.0,0.0001497,2]
[392828483,1762011031823,-300.0,0.0001497,2]
[392828484,1762011031832,-300.0,0.0001497,2]
[392828485,1762011031841,-248.71531821,0.0001497,2]
[392828486,1762011031851,-317.54,0.00014971,2]
[392828487,1762011031860,-422.74,0.00014971,2]
[392828488,1762011031869,-1587.91,0.00014971,2]
[392828489,1762011031878,-500.0,0.00014971,2]
[392828490,1762011031889,-306.57558661,0.00014971,2]
[392828491,1762011031901,-200.0,0.00014971,2]
[392828492,1762011031910,-514.84070869,0.00014971,2]
[392828493,1762011031920,-200.0,0.00014971,2]
[392828494,1762011031931,-250.0,0.00014971,2]
[392828495,1762011031940,-250.0,0.00014971,2]
[392828496,1762011031949,-250.0,0.00014971,2]
[392828497,1762011031958,-250.0,0.00014971,2]
[392828498,1762011031969,-250.0,0.00014971,2]
[392828499,1762011031978,-250.0,0.00014971,2]
[392828500,1762011031987,-250.0,0.00014971,2]
[392828501,1762011031996,-250.0,0.00014971,2]
[392828502,1762011032005,-151.0,0.00014971,2]
[392828503,1762011032014,-926.62,0.00014972,2]
[392828504,1762011032023,-573.0,0.00014972,2]
[392828505,1762011032032,-607.0,0.00014972,2]
[392828506,1762011032042,-175.84901392,0.00014973,2]
[392828507,1762011032051,-151.0,0.00014977,2]
[392828508,1762011032061,-1011.74166162,0.00014979,2]
[392828509,1762011032070,-9999.99,0.00014979,2]
[392828510,1762011032080,-150.99,0.00014979,2]
[392828512,1762011032089,-251.53,0.00014979,2]
[392828514,1762011032098,-3635.8627704,0.00014979,2]
[392828516,1762011032107,-3340.937,0.00014979,2]
[392828517,1762011032116,-602.70419512,0.00014979,2]
[392828519,1762011032125,-500.0,0.00014979,2]
[392828521,1762011032134,-169.03996887,0.00014979,2]
[392828523,1762011032143,-500.0,0.00014979,2]
[392828525,1762011032153,-500.0,0.00014979,2]
[392828527,1762011032162,-500.0,0.00014979,2]
[392828529,1762011032171,-500.0,0.00014979,2]
[392828530,1762011032181,-500.0,0.00014979,2]
[392828532,1762011032190,-500.0,0.00014979,2]
[392828534,1762011032199,-500.0,0.00014979,2]
[392828536,1762011032209,-550.0,0.00014979,2]
[392828537,1762011032218,-500.0,0.00014979,2]
[392828538,1762011032228,-500.0,0.00014979,2]
[392828539,1762011032237,-500.0,0.00014979,2]
[392828540,1762011032247,-500.0,0.00014979,2]
[392828541,1762011032256,-500.0,0.00014979,2]
[392828542,1762011032266,-500.0,0.00014979,2]
[392828543,1762011032275,-666.0,0.00014979,2]
[392828544,1762011032285,-115827.45610152,0.0001498,2]
[392828545,1762011032301,-661.06108218,0.0001498,2]
[392828546,1762011032313,-312.07198502,0.0001498,2]
[392828547,1762011037709,-3420.0,0.00014979,2]
[392828548,1762011037718,-2418.20829074,0.0001498,2]
[392828549,1762011037730,-2064.49660414,0.0001498,2]
[392828550,1762011037741,-3074.05526886,0.0001498,2]
[392828556,1762011039671,577.47291012,0.00031232,120]
[392828562,1762011039740,-251.53,0.0001498,2]
[392828611,1762011040071,-1093.47054532,0.0001498,2]
[392828898,1762011045760,-6652.0,0.00014979,2]
[392828900,1762011045770,-4239.64815684,0.0001498,2]
[392828902,1762011045781,-2426.592,0.0001498,2]
[392828918,1762011045923,-327933.58548755,0.0001498,2]
[392829163,1762011070154,5836.82087246,0.000148,2]
[392829164,1762011070175,15000.0,0.000148,2]
[392829165,1762011070195,15000.0,0.000148,2]
[392829166,1762011070214,15000.0,0.000148,2]
[392829167,1762011070234,15000.0,0.000148,2]
[392829168,1762011070254,15000.0,0.000148,2]
[392829169,1762011070274,15000.0,0.000148,2]
[392829170,1762011070293,2933.83338788,0.000148,2]
[392829171,1762011090984,755.03,0.00014056,2]
[392829174,1762011226042,168.0,0.0001443,2]
[392829177,1762011338296,166.68,0.00014448,2]
[392829178,1762011395480,1123.813367,0.0001488,2]
[392829179,1762011398864,1123.81336699,0.0001488,2]
[392829180,1762011407752,226.80286977,0.00031232,120]
[392829181,1762011415883,209.68674,0.0001483,2]
[392829187,1762011580708,1805.96,0.00014014,2]
[392829188,1762011587834,600.0,0.00014795,2]
[392829189,1762011588114,600.0,0.00014795,2]
[392829190,1762011588432,600.0,0.00014795,2]
[392829191,1762011588692,600.0,0.00014795,2]
[392829192,1762011588952,600.0,0.00014795,2]
[392829193,1762011589219,600.0,0.00014795,2]
[392829194,1762011589521,600.0,0.00014795,2]
[392829195,1762011589800,600.0,0.00014795,2]
[392829196,1762011649947,3573.64,0.00014133,2]
[392829198,1762011717573,150.0,0.00014019,2]
[392829199,1762011745609,160.37,0.0001403,2]
[392829200,1762011806958,174.73895,0.0001483,2]
[392829201,1762011834688,1000.0,0.00012808,2]
[392829202,1762011834821,711.29757601,0.00012808,2]
[392829203,1762011834842,2188.70242399,0.00012808,2]
[392829204,1762011835202,700.0,0.00012808,2]
[392829205,1762011835244,1000.0,0.00014178,2]
[392829206,1762011835420,2900.0,0.00014178,2]
[392829207,1762011835811,700.0,0.00014178,2]
[392829208,1762011879617,169.82,0.00013699,2]
[392829209,1762011879845,169.82,0.00013954,2]
[392829210,1762011880042,169.82,0.0001421,2]
[392829211,1762011880244,169.82,0.00014466,2]
[392829212,1762011880454,169.82,0.00014722,2]
[392829213,1762011907113,150.0,0.00013488,2]
[392829214,1762011907210,150.0,0.00013488,2]
[392829215,1762011914366,150.0,0.00013488,2]
[392829216,1762011985177,200.0,0.00014044,2]
[392829217,1762012015345,150.0,0.00014032,2]
[392829218,1762012050748,827.48,0.00013699,2]
[392829222,1762012116589,230.98035921,0.0001488,2]
[392829223,1762012121474,230.98035916,0.00014882,2]
[392829224,1762012126434,230.98035916,0.00014884,2]
[392829225,1762012131444,230.98035916,0.00014887,2]
[392829226,1762012136675,230.98035916,0.00014889,2]
[392829227,1762012141460,230.98035916,0.00014891,2]
[392829228,1762012146454,230.98035916,0.00014893,2]
[392829229,1762012147169,1000.0,0.00014016,2]
[392829230,1762012151441,230.98035916,0.00014896,2]
[392829231,1762012156415,230.98035916,0.00014898,2]
[392829232,1762012161445,230.98035916,0.000149,2]
[392829234,1762012219699,50000.0,0.00031507,120]
[392829319,1762012237943,-160.37,0.00014907,2]
[392829320,1762012237953,-116.23900754,0.0001491,2]
[392829350,1762012240137,-183.76099246,0.0001491,2]
[392829352,1762012240147,-250.0,0.00014914,2]
[392829354,1762012240157,-300.0,0.00014921,2]
[392829356,1762012240166,-300.0,0.00014921,2]
[392829358,1762012240175,-317.54,0.00014966,2]
[392829360,1762012240184,-352.28,0.00014966,2]
[392829361,1762012240193,-1200.0,0.0001497,2]
[392829362,1762012240203,-300.0,0.0001497,2]
[392829363,1762012240212,-300.0,0.0001497,2]
[392829364,1762012240221,-8260.13072239,0.00014971,2]
[392829365,1762012240231,-239.84119403,0.00014971,2]
[392829366,1762012240240,-151.0,0.00014977,2]
[392829367,1762012240250,-2050.45779052,0.00014979,2]
[392829368,1762012240259,-2672.749,0.00014979,2]
[392829369,1762012240268,-500.0,0.00014979,2]
[392829370,1762012240278,-150.0,0.00014979,2]
[392829371,1762012240287,-500.0,0.00014979,2]
[392829372,1762012240296,-320.88329651,0.00014979,2]
[392829373,1762012240305,-330099.66255126,0.0001498,2]
[392829374,1762012240315,-151.0,0.0001498,2]
[392829375,1762012240325,-104315.65685166,0.0001498,2]
[392829376,1762012240334,-1455.59,0.0001498,2]
[392829377,1762012240346,-2749.603448,0.0001498,2]
[392829378,1762012240356,-164.26313,0.0001498,2]
[392829379,1762012240365,-151.0,0.00014982,2]
[392829380,1762012240375,-500.0,0.00014984,2]
[392829381,1762012240384,-89168.10915088,0.00014985,2]
[392829382,1762012240393,-151.0,0.00014985,2]
[392829383,1762012240402,-151.0,0.00014985,2]
[392829384,1762012240411,-151.0,0.00014985,2]
[392829385,1762012240420,-218.979912,0.00014985,2]
[392829386,1762012240430,-151.684275,0.00014985,2]
[392829387,1762012240439,-161.593441,0.00014985,2]
[392829388,1762012240448,-166.335443,0.00014985,2]
[392829389,1762012240457,-156.107889,0.00014985,2]
[392829390,1762012240466,-159.696175,0.00014985,2]
[392829392,1762012240475,-151.0,0.00014985,2]
[392829394,1762012240485,-155.499537,0.00014985,2]
[392829395,1762012240494,-151.0,0.00014985,2]
[392829396,1762012240503,-151.0,0.00014985,2]
[392829397,1762012240512,-151.0,0.00014985,2]
[392829398,1762012240522,-151.0,0.00014985,2]
[392829399,1762012240533,-151.0,0.00014985,2]
[392829400,1762012240545,-151.0,0.00014985,2]
[392829401,1762012240555,-150.0,0.00014985,2]
[392829402,1762012240564,-159.050746,0.00014985,2]
[392829403,1762012240576,-151.0,0.00014985,2]
[392829404,1762012240585,-151.0,0.00014985,2]
[392829405,1762012240594,-151.0,0.00014985,2]
[392829406,1762012240604,-158.761325,0.00014985,2]
[392829407,1762012240614,-151.0,0.00014985,2]
[392829408,1762012240623,-156.903624,0.00014985,2]
[392829409,1762012240633,-151.0,0.00014985,2]
[392829410,1762012240642,-151.0,0.00014985,2]
[392829411,1762012240652,-151.0,0.00014985,2]
[392829412,1762012240662,-354.36,0.00014985,2]
[392829413,1762012240671,-354.36,0.00014985,2]
[392829414,1762012240680,-151.0,0.00014985,2]
[392829415,1762012240689,-354.36,0.00014985,2]
[392829416,1762012240698,-354.36,0.00014985,2]
[392829417,1762012240707,-151.0,0.00014985,2]
[392829418,1762012240717,-202.042491,0.00014985,2]
[392829419,1762012240727,-151.0,0.00014985,2]
[392829420,1762012240736,-151.0,0.00014985,2]
[392829421,1762012240745,-151.0,0.00014985,2]
[392829422,1762012240755,-151.0,0.00014985,2]
[392829423,1762012240764,-151.0,0.00014985,2]
[392829424,1762012240774,-151.0,0.00014985,2]
[392829425,1762012240783,-151.0,0.00014985,2]
[392829426,1762012240792,-151.0,0.00014985,2]
[392829427,1762012240802,-151.0,0.00014985,2]
[392829428,1762012240811,-151.0,0.00014985,2]
[392829429,1762012240820,-215.174072,0.00014985,2]
[392829430,1762012240829,-151.0,0.00014985,2]
[392829431,1762012240838,-151.0,0.00014985,2]
[392829432,1762012240847,-151.0,0.00014985,2]
[392829433,1762012240856,-151.0,0.00014985,2]
[392829434,1762012240866,-157.204459,0.00014985,2]
[392829435,1762012240875,-268.166299,0.00014985,2]
[392829436,1762012240884,-151.0,0.00014985,2]
[392829437,1762012240893,-152.58559931,0.00014985,2]
[392829438,1762012240902,-151.0,0.00014985,2]
[392829439,1762012240912,-182.916703,0.00014985,2]
[392829440,1762012240921,-158.665339,0.00014985,2]
[392829441,1762012240930,-151.0,0.00014985,2]
[392829442,1762012240948,-151.0,0.00014985,2]
[392829443,1762012240959,-151.0,0.00014985,2]
[392829444,1762012240968,-151.0,0.00014985,2]
[392829445,1762012240977,-151.0,0.00014985,2]
[392829446,1762012240987,-151.0,0.00014985,2]
[392829447,1762012240996,-151.264267,0.00014985,2]
[392829448,1762012241005,-151.0,0.00014985,2]
[392829449,1762012241015,-151.0,0.00014985,2]
[392829450,1762012241024,-151.0,0.00014985,2]
[392829451,1762012241033,-157.352261,0.00014985,2]
[392829452,1762012241043,-153.91311,0.00014985,2]
[392829453,1762012241052,-151.0,0.00014985,2]
[392829454,1762012241062,-151.0,0.00014985,2]
[392829455,1762012241071,-151.0,0.00014985,2]
[392829456,1762012241081,-151.0,0.00014985,2]
[392829457,1762012241091,-151.0,0.00014985,2]
[392829458,1762012241100,-151.0,0.00014985,2]
[392829459,1762012241110,-151.0,0.00014985,2]
[392829460,1762012241119,-151.0,0.00014985,2]
[392829461,1762012241130,-151.0,0.00014985,2]
[392829462,1762012241139,-273.006367,0.00014985,2]
[392829463,1762012241148,-350.089243,0.00014985,2]
[392829464,1762012241159,-350.089243,0.00014985,2]
[392829465,1762012241168,-350.089243,0.00014985,2]
[392829466,1762012241177,-350.089243,0.00014985,2]
[392829467,1762012241187,-151.0,0.00014985,2]
[392829468,1762012241196,-152.326077,0.00014985,2]
[392829469,1762012241205,-152.326077,0.00014985,2]
[392829470,1762012241215,-152.326077,0.00014985,2]
[392829471,1762012241224,-152.326077,0.00014985,2]
[392829472,1762012241234,-266.435307,0.00014985,2]
[392829473,1762012241243,-266.435307,0.00014985,2]
[392829474,1762012241253,-266.435307,0.00014985,2]
[392829475,1762012241262,-266.435307,0.00014985,2]
[392829476,1762012241271,-151.0,0.00014985,2]
[392829477,1762012241281,-155.149305,0.00014985,2]
[392829478,1762012241290,-151.0,0.00014985,2]
[392829479,1762012241299,-151.90915939,0.00014985,2]
[392829480,1762012241308,-150.79851215,0.00014985,2]
[392829481,1762012241318,-150.0,0.00014985,2]
[392829482,1762012241331,-151.0,0.00014985,2]
[392829483,1762012241341,-150.0,0.00014985,2]
[392829484,1762012241350,-500.0,0.00014985,2]
[392829485,1762012241360,-150.0,0.00014985,2]
[392829486,1762012241369,-150.0,0.00014985,2]
[392829487,1762012241378,-151.0,0.00014985,2]
[392829488,1762012241388,-150.0,0.00014985,2]
[392829489,1762012241397,-500.0,0.00014985,2]
[392829490,1762012241406,-500.0,0.00014985,2]
[392829491,1762012241417,-257.02911303,0.00014985,2]
[392829492,1762012241426,-151.0,0.00014985,2]
[392829493,1762012241436,-151.0,0.00014985,2]
[392829494,1762012241445,-500.0,0.00014985,2]
[392829495,1762012241455,-1004.646554,0.00014985,2]
[392829496,1762012241464,-150.0,0.00014985,2]
[392829497,1762012241473,-1004.646554,0.00014985,2]
[392829498,1762012241483,-1004.646554,0.00014985,2]
[392829499,1762012241492,-151.0,0.00014985,2]
[392829500,1762012241501,-1004.646554,0.00014985,2]
[392829501,1762012241510,-151.0,0.00014985,2]
[392829502,1762012241520,-348.570298,0.00014985,2]
[392829503,1762012241529,-348.570298,0.00014985,2]
[392829504,1762012241539,-151.0,0.00014985,2]
[392829505,1762012241548,-348.570298,0.00014985,2]
[392829506,1762012241557,-151.0,0.00014985,2]
[392829507,1762012241567,-151.0,0.00014985,2]
[392829508,1762012241580,-348.570298,0.00014985,2]
[392829509,1762012241589,-151.0,0.00014985,2]
[392829510,1762012241599,-151.0,0.00014985,2]
[392829511,1762012241609,-151.0,0.00014985,2]
[392829512,1762012241620,-151.0,0.00014985,2]
[392829513,1762012241629,-151.0,0.00014985,2]
[392829514,1762012241638,-151.0,0.00014985,2]
[392829515,1762012241651,-151.0,0.00014985,2]
[392829516,1762012241661,-159.253859,0.00014985,2]
[392829517,1762012241671,-309.36797,0.00014985,2]
[392829518,1762012241680,-150.0,0.00014985,2]
[392829519,1762012241691,-309.36797,0.00014985,2]
[392829520,1762012241701,-151.0,0.00014985,2]
[392829521,1762012241710,-500.0,0.00014985,2]
[392829522,1762012241719,-309.36797,0.00014985,2]
[392829523,1762012241729,-150.0,0.00014985,2]
[392829524,1762012241738,-309.36797,0.00014985,2]
[392829525,1762012241747,-151.0,0.00014985,2]
[392829526,1762012241756,-150.0,0.00014985,2]
[392829527,1762012241765,-500.0,0.00014985,2]
[392829528,1762012241774,-151.0,0.00014985,2]
[392829529,1762012241783,-151.0,0.00014985,2]
[392829530,1762012241793,-200.0,0.00014985,2]
[392829531,1762012241802,-150.0,0.00014985,2]
[392829532,1762012241811,-150.0,0.00014985,2]
[392829533,1762012241821,-150.0,0.00014985,2]
[392829534,1762012241830,-246.156779,0.00014985,2]
[392829535,1762012241839,-289.052904,0.00014985,2]
[392829536,1762012241849,-500.0,0.00014985,2]
[392829537,1762012241858,-150.0,0.00014985,2]
[392829538,1762012241867,-151.0,0.00014985,2]
[392829539,1762012241877,-246.156779,0.00014985,2]
[392829540,1762012241886,-908.77794,0.00014985,2]
[392829541,1762012241899,-151.0,0.00014985,2]
[392829542,1762012241909,-246.156779,0.00014985,2]
[392829543,1762012241918,-908.77794,0.00014985,2]
[392829544,1762012241928,-246.156779,0.00014985,2]
[392829545,1762012241937,-908.77794,0.00014985,2]
[392829546,1762012241947,-908.77794,0.00014985,2]
[392829547,1762012241956,-151.0,0.00014985,2]
[392829548,1762012241965,-151.0,0.00014985,2]
[392829549,1762012241974,-257.050351,0.00014985,2]
[392829550,1762012241984,-151.0,0.00014985,2]
[392829551,1762012241993,-257.050351,0.00014985,2]
[392829552,1762012242003,-257.050351,0.00014985,2]
[392829553,1762012242012,-151.0,0.00014985,2]
[392829554,1762012242022,-257.050351,0.00014985,2]
[392829555,1762012242031,-155.334502,0.00014985,2]
[392829556,1762012242040,-369.661257,0.00014985,2]
[392829557,1762012242049,-369.661257,0.00014985,2]
[392829558,1762012242058,-151.0,0.00014985,2]
[392829559,1762012242067,-369.661257,0.00014985,2]
[392829560,1762012242077,-151.0,0.00014985,2]
[392829561,1762012242333,-151.0,0.00014985,2]
[392829562,1762012242343,-151.0,0.00014985,2]
[392829563,1762012242353,-369.661257,0.00014985,2]
[392829564,1762012242362,-151.0,0.00014985,2]
[392829565,1762012242372,-224.209457,0.00014985,2]
[392829566,1762012242381,-151.0,0.00014985,2]
[392829567,1762012242390,-151.0,0.00014985,2]
[392829568,1762012242401,-151.0,0.00014985,2]
[392829569,1762012242410,-189.115932,0.00014985,2]
[392829570,1762012242420,-224.209457,0.00014985,2]
[392829571,1762012242430,-151.0,0.00014985,2]
[392829572,1762012242440,-151.0,0.00014985,2]
[392829573,1762012242449,-251.877595,0.00014985,2]
[392829574,1762012242458,-224.209457,0.00014985,2]
[392829575,1762012242468,-151.0,0.00014985,2]
[392829576,1762012242478,-151.0,0.00014985,2]
[392829577,1762012242487,-163.632111,0.00014985,2]
[392829578,1762012242497,-224.209457,0.00014985,2]
[392829579,1762012242507,-4135.46339211,0.00014987,2]
[392829580,1762012242516,-14743.21858423,0.0001499,2]
[392829581,1762012242527,-155.46121285,0.00014991,2]
[392829582,1762012242537,-151.14476816,0.00014991,2]
[392829583,1762012242547,-500.0,0.00014991,2]
[392829584,1762012242557,-500.0,0.00014991,2]
[392829585,1762012242566,-500.0,0.00014991,2]
[392829586,1762012242581,-151.0,0.00014991,2]
[392829587,1762012242590,-160.0,0.00014991,2]
[392829588,1762012242600,-623.58710448,0.00014991,2]
[392829589,1762012242609,-151.0,0.00014991,2]
[392829590,1762012242619,-250.0,0.00014991,2]
[392829591,1762012242629,-250.0,0.00014991,2]
[392829592,1762012242639,-496.47127164,0.00014991,2]
[392829593,1762012242649,-500.0,0.00014991,2]
[392829594,1762012242658,-181.08010149,0.00014991,2]
[392829595,1762012242667,-250.0,0.00014991,2]
[392829597,1762012242676,-181.08010149,0.00014991,2]
[392829598,1762012242686,-151.0,0.00014991,2]
[392829599,1762012242695,-250.0,0.00014991,2]
[392829600,1762012242705,-1891.75,0.00014992,2]
[392829601,1762012242714,-151.0,0.00014994,2]
[392829603,1762012242724,-151.0,0.00014994,2]
[392829604,1762012242733,-151.0,0.00014994,2]
[392829605,1762012242742,-151.0,0.00014994,2]
[392829606,1762012242751,-151.0,0.00014994,2]
[392829607,1762012242760,-151.0,0.00014994,2]
[392829608,1762012242770,-354.36,0.00014994,2]
[392829609,1762012242779,-354.36,0.00014994,2]
[392829610,1762012242789,-151.0,0.00014994,2]
[392829611,1762012242798,-354.36,0.00014994,2]
[392829612,1762012242807,-354.36,0.00014994,2]
[392829613,1762012242816,-243.742611,0.00014994,2]
[392829614,1762012242825,-151.0,0.00014994,2]
[392829615,1762012242834,-151.0,0.00014994,2]
[392829616,1762012242843,-151.0,0.00014994,2]
[392829617,1762012242852,-155.262478,0.00014994,2]
[392829618,1762012242861,-151.0,0.00014994,2]
[392829619,1762012242870,-151.0,0.00014994,2]
[392829620,1762012242880,-151.0,0.00014994,2]
[392829621,1762012242889,-151.0,0.00014994,2]
[392829622,1762012242898,-151.0,0.00014994,2]
[392829623,1762012242907,-151.0,0.00014994,2]
[392829624,1762012242916,-151.0,0.00014994,2]
[392829625,1762012242925,-151.0,0.00014994,2]
[392829626,1762012242934,-151.0,0.00014994,2]
[392829627,1762012242943,-151.0,0.00014994,2]
[392829628,1762012242952,-820.0,0.00014994,2]
[392829629,1762012242961,-3420.0,0.00014994,2]
[392829630,1762012242970,-573.0,0.00014994,2]
[392829631,1762012242979,-151.0,0.00014994,2]
[392829632,1762012242988,-151.0,0.00014994,2]
[392829633,1762012242997,-151.0,0.00014994,2]
[392829634,1762012243006,-607.0,0.00014994,2]
[392829635,1762012243014,-169.571141,0.00014994,2]
[392829636,1762012243023,-151.0,0.00014994,2]
[392829637,1762012243032,-151.036242,0.00014994,2]
[392829638,1762012243041,-151.0,0.00014994,2]
[392829639,1762012243050,-1314.0,0.00014994,2]
[392829640,1762012243059,-1594.0,0.00014994,2]
[392829641,1762012243068,-181.492197,0.00014994,2]
[392829642,1762012243077,-151.0,0.00014994,2]
[392829643,1762012243086,-819.0,0.00014994,2]
[392829644,1762012243095,-151.0,0.00014994,2]
[392829645,1762012243104,-1272.0,0.00014994,2]
[392829646,1762012243114,-196.589911,0.00014994,2]
[392829647,1762012243123,-151.0,0.00014994,2]
[392829648,1762012243132,-151.0,0.00014994,2]
[392829649,1762012243141,-151.0,0.00014994,2]
[392829650,1762012243150,-151.0,0.00014994,2]
[392829651,1762012243160,-350.089243,0.00014994,2]
[392829652,1762012243169,-350.089243,0.00014994,2]
[392829653,1762012243179,-350.089243,0.00014994,2]
[392829654,1762012243188,-350.089243,0.00014994,2]
[392829655,1762012243197,-151.0,0.00014994,2]
[392829656,1762012243206,-152.326077,0.00014994,2]
[392829657,1762012243215,-152.326077,0.00014994,2]
[392829658,1762012243224,-152.326077,0.00014994,2]
[392829659,1762012243234,-152.326077,0.00014994,2]
[392829660,1762012243243,-266.435307,0.00014994,2]
[392829661,1762012243252,-266.435307,0.00014994,2]
[392829662,1762012243261,-266.435307,0.00014994,2]
[392829663,1762012243270,-266.435307,0.00014994,2]
[392829664,1762012243279,-151.0,0.00014994,2]
[392829665,1762012243288,-156.427317,0.00014994,2]
[392829666,1762012243297,-151.0,0.00014994,2]
[392829667,1762012243306,-151.0,0.00014994,2]
[392829668,1762012243315,-151.0,0.00014994,2]
[392829669,1762012243324,-1004.646554,0.00014994,2]
[392829670,1762012243333,-1004.646554,0.00014994,2]
[392829671,1762012243342,-1004.646554,0.00014994,2]
[392829672,1762012243351,-171.509977,0.00014994,2]
[392829673,1762012243361,-1004.646554,0.00014994,2]
[392829674,1762012243370,-151.0,0.00014994,2]
[392829675,1762012243379,-348.570298,0.00014994,2]
[392829676,1762012243388,-348.570298,0.00014994,2]
[392829677,1762012243398,-151.0,0.00014994,2]
[392829678,1762012243407,-348.570298,0.00014994,2]
[392829679,1762012243416,-151.0,0.00014994,2]
[392829680,1762012243426,-151.0,0.00014994,2]
[392829682,1762012243436,-348.570298,0.00014994,2]
[392829683,1762012243446,-151.0,0.00014994,2]
[392829685,1762012243455,-151.0,0.00014994,2]
[392829688,1762012243464,-151.0,0.00014994,2]
[392829690,1762012243474,-210.583447,0.00014994,2]
[392829691,1762012243483,-151.0,0.00014994,2]
[392829693,1762012243491,-151.0,0.00014994,2]
[392829695,1762012243501,-309.36797,0.00014994,2]
[392829697,1762012243511,-309.36797,0.00014994,2]
[392829700,1762012243520,-151.0,0.00014994,2]
[392829701,1762012243529,-309.36797,0.00014994,2]
[392829702,1762012243538,-309.36797,0.00014994,2]
[392829703,1762012243547,-151.0,0.00014994,2]
[392829704,1762012243557,-151.0,0.00014994,2]
[392829705,1762012243566,-162.784802,0.00014994,2]
[392829706,1762012243579,-246.156779,0.00014994,2]
[392829707,1762012243589,-151.0,0.00014994,2]
[392829708,1762012243598,-246.156779,0.00014994,2]
[392829709,1762012243607,-908.77794,0.00014994,2]
[392829710,1762012243618,-151.0,0.00014994,2]
[392829711,1762012243626,-246.156779,0.00014994,2]
[392829712,1762012243636,-908.77794,0.00014994,2]
[392829713,1762012243645,-246.156779,0.00014994,2]
[392829714,1762012243655,-908.77794,0.00014994,2]
[392829715,1762012243664,-908.77794,0.00014994,2]
[392829716,1762012243672,-151.0,0.00014994,2]
[392829717,1762012243681,-156.102026,0.00014994,2]
[392829718,1762012243691,-257.050351,0.00014994,2]
[392829719,1762012243700,-257.050351,0.00014994,2]
[392829720,1762012243709,-151.0,0.00014994,2]
[392829721,1762012243718,-257.050351,0.00014994,2]
[392829722,1762012243726,-151.000006,0.00014994,2]
[392829723,1762012243735,-257.050351,0.00014994,2]
[392829724,1762012243744,-369.661257,0.00014994,2]
[392829725,1762012243754,-1152.0,0.00014994,2]
[392829726,1762012243774,-369.661257,0.00014994,2]
[392829727,1762012243784,-151.0,0.00014994,2]
[392829728,1762012243794,-369.661257,0.00014994,2]
[392829729,1762012243802,-151.0,0.00014994,2]
[392829730,1762012243811,-151.0,0.00014994,2]
[392829731,1762012243820,-151.0,0.00014994,2]
[392829732,1762012243829,-2188.503,0.00014994,2]
[392829733,1762012243838,-369.661257,0.00014994,2]
[392829734,1762012243847,-6468.0,0.00014994,2]
[392829735,1762012243856,-153.736114,0.00014994,2]
[392829736,1762012243865,-151.0,0.00014994,2]
[392829737,1762012243878,-224.209457,0.00014994,2]
[392829738,1762012243887,-151.0,0.00014994,2]
[392829739,1762012243896,-559.0,0.00014994,2]
[392829740,1762012243906,-151.0,0.00014994,2]
[392829741,1762012243915,-224.209457,0.00014994,2]